[Event "44th Chess Olympiad Women 2022"]
[Site "Chennai"]
[Date "2022.07.29"]
[Round "1.43"]
[White "Tsai, Sophie Yi-Hsuan"]
[Black "Berke, Ana"]
[Result "1/2-1/2"]
[ECO "B62"]
[WhiteElo "1131"]
[BlackElo "2163"]
[Annotator "TA"]
[PlyCount "130"]
[EventDate "2022.07.29"]
[EventType "team-tourn"]
[EventCountry "IND"]
[SourceTitle "playchess.com"]
[Source "ChessBase"]
[SourceQuality "1"]
[WhiteTeam "Taiwan"]
[BlackTeam "Croatia"]
[WhiteTeamCountry "TPE"]
[BlackTeamCountry "CRO"]
[TimeControl "40/5400+30:1800+30"]

{[%evp 12,130,37,0,27,-2,23,-35,-35,-35,-34,-36,0,0,22,0,41,45,41,43,46,49,49,33,60,48,40,33,37,29,41,36,42,33,43,35,41,31,45,0,17,4,58,49,73,27,141,0,103,100,112,107,202,201,188,166,219,66,77,71,149,151,193,194,239,225,448,423,523,522,599,589,1758,201,197,197,197,140,192,143,185,190,183,172,182,73,106,19,19,19,19,19,75,19,19,6,7,7,126,-8,112,8,8,8,8,8,50,4,4,0,29,30,41,20,20,20,20,20,34,34,34]} 1. e4 {[%emt 0:00:04]} c5 {[%emt 0:00:06]} 2. Nf3 {[%emt 0:00:14]} d6 {[%emt 0:00:06]} 3. d4 {[%emt 0:00:27]} cxd4 {[%emt 0:00:06]} 4. Nxd4 {[%emt 0:00:29]} Nf6 {[%emt 0:00:03]} 5. Nc3 {[%emt 0:00:17]} Nc6 {[%emt 0:00:05]} 6. Bg5 {[%emt 0:01:39]} e6 {[%emt 0:00:21]} 7. Be2 {[%emt 0:05:52]} a6 {[%emt 0:00:33] B62: Sicilian: Richter-Rauzer: 6...e6: Unusual White 7th moves.} 8. h3 {[%emt 0:19:34]} Bd7 {[%emt 0:00:43] [#]} 9. g4 $146 {[%emt 0:01:14]} (9. Nb3 $11) ({Predecessor:} 9. Qd2 Be7 10. O-O-O Rc8 11. Nxc6 Rxc6 12. Qd4 Qa5 13. Be3 O-O 14. Bc4 Rfc8 15. Bb3 {1-0 (30) Karetnikova,J (1924)-Borisova,T Irkutsk 2010}) 9... Qa5 $15 {[%emt 0:06:46][%csl LRe4,LRg5] Black is slightly better.} 10. Bxf6 {[%emt 0:01:10]} gxf6 {[%emt 0:05:59]} 11. Nb3 {[%emt 0:08:14]} Qc7 {[%emt 0:03:09]} 12. Qd2 {[%emt 0:10:55] Prevents Bh6.} h5 {[%emt 0:02:56]} (12... b5 $5 {[%cal Rh7h5]}) 13. O-O-O {[%emt 0:19:53]} h4 {[%emt 0:04:57]} (13... b5 $5 {[%cal Rb5b4]}) 14. Kb1 {[%emt 0:01:02]} O-O-O {[%emt 0:00:25]} 15. f4 {[%emt 0:00:35]} Kb8 {[%emt 0:00:53]} 16. Rhf1 {[%emt 0:02:01]} Bc8 {[%emt 0:01:22]} 17. Qe3 {[%emt 0:02:38]} b5 {[%emt 0:01:20]} 18. a3 {[%emt 0:01:23]} Qa7 {[%emt 0:06:53]} 19. Qxa7+ {[%emt 0:00:38]} Kxa7 {[%emt 0:00:16]} 20. f5 {[%emt 0:00:29]} Be7 {[%emt 0:01:02]} 21. Nd4 {[%emt 0:03:52]} Ne5 {[%emt 0:02:51]} 22. Na2 {[%emt 0:02:38][%cal Bc3a2,Ba2b4,Bb4d3][%mdl 32]} Bd7 {[%emt 0:00:48]} 23. Nb4 {[%emt 0:00:22]} Rb8 {[%emt 0:01:22]} 24. Nb3 {[%emt 0:03:32]} Rhc8 {[%emt 0:05:56]} 25. Nd3 {[%emt 0:00:52] Pair of Knights!} (25. c3 {is interesting.} Kb6 26. Nd4 Rc7 27. Nbc2) 25... Nc4 {[%emt 0:03:16]} 26. Rf3 {[%emt 0:02:45] Inhibits Ne3.} Be8 {[%emt 0:01:36]} ({Better is} 26... Bc6 $11) 27. fxe6 {[%emt 0:04:33]} fxe6 {[%emt 0:00:48]} 28. Nd4 {[%emt 0:00:42]} (28. Nf4 $1 $16) 28... Bd7 {[%emt 0:02:04]} (28... Bg6 $1 $11) 29. g5 {[%emt 0:01:13]} (29. Nf4 $1 $16) 29... fxg5 {[%emt 0:01:28]} (29... Rf8 $11) 30. Rf7 $16 {[%emt 0:00:11]} Re8 {[%emt 0:00:34]} 31. Bh5 $1 {[%emt 0:00:29]} e5 {[%emt 0:04:10]} (31... a5 $16) 32. Nf5 $18 {[%emt 0:01:10]} Bxf5 {[%emt 0:01:10]} 33. exf5 {[%emt 0:00:06] Hoping for Nb4.} Ne3 {[%emt 0:03:56]} (33... Kb6 $142 34. Nb4 (34. f6 Bf8 $16) 34... Ne3) 34. Rg1 $2 {[%emt 0:01:07]} (34. Re1 $18 Nd5 35. Bf3) 34... Kb6 $1 $14 {[%emt 0:04:27]} 35. f6 $36 {[%emt 0:01:34][%mdl 2048] White has strong initiative.} Bd8 {[%emt 0:04:03]} ({Black should play} 35... Bf8) 36. Rxg5 $16 {[%emt 0:02:23] White is more active.} Nd5 {[%emt 0:01:16]} 37. Nb4 $1 {[%emt 0:00:59]} Nxb4 {[%emt 0:02:40]} 38. axb4 {[%emt 0:00:10]} e4 $2 {[%emt 0:02:02]} (38... Kc6 39. Rgg7 e4) 39. Rd7 $1 $18 {[%emt 0:01:18][%csl LRd6,LRe8]} Rf8 {[%emt 0:06:48]} 40. Rxd6+ {[%emt 0:00:53]} Kc7 {[%emt 0:03:05]} 41. Rgd5 {[%emt 0:30:18]} Rb7 {[%emt 0:39:49]} 42. Rxa6 {[%emt 0:01:03]} (42. f7) 42... Rxf6 {[%emt 0:03:05]} 43. Ra8 {[%emt 0:00:31]} Be7 {[%emt 0:00:48]} 44. Bg4 {[%emt 0:00:27]} (44. c3 $18) 44... Bd6 {[%emt 0:02:30] Prevents Re5.} (44... Bxb4 $16 {was necessary.} 45. Rc8+ Kb6) 45. Rc8+ {[%emt 0:00:33]} Kb6 {[%emt 0:03:30]} 46. Be2 {[%emt 0:00:29]} Ka7 {[%emt 0:00:00]} 47. Bxb5 {[%emt 0:00:00]} Bxb4 {[%emt 0:00:00]} 48. Bc6 {[%emt 0:00:00]} (48. Rc4 $18 Be7 49. Ra4+ (49. Rxe4 Rf3 $18) 49... Kb8 50. Rxe4) 48... Re7 $16 {[%emt 0:00:00][%cal Of6c6] aiming for ...Rxc6!} 49. Rd7+ {[%emt 0:00:00]} (49. Ra8+ $16 Kb6 50. Bb5) 49... Rxd7 $11 {[%emt 0:00:00]} 50. Bxd7 {[%emt 0:00:00][%mdl 4096] Endgame KRB-KRB} e3 {[%emt 0:00:00]} 51. Re8 {[%emt 0:00:00]} Rf1+ {[%emt 0:00:00]} 52. Ka2 {[%emt 0:00:00]} Bd2 $1 {[%emt 0:00:00]} 53. c3 {[%emt 0:00:00]} Rf2 {[%emt 0:00:00] Threatens to win with ...e2.} 54. Bg4 {[%emt 0:00:00] Inhibits e2.} Rg2 {[%emt 0:00:00]} (54... Bxc3 $11 {remains equal.} 55. Rxe3 Rxb2+ 56. Ka3 Bf6) 55. Re4 {[%emt 0:01:36] [#]} (55. Kb1 $1 $16) 55... Kb6 {[%emt 0:00:00] [#]} (55... Rxg4 $1 $11 56. Rxg4 e2) 56. Kb3 {[%emt 0:01:00]} (56. Kb1 $1 $16) 56... Bc1 {[%emt 0:00:00]} 57. Kc4 {[%emt 0:01:54] Strongly threatening b4.} Rxb2 {[%emt 0:00:00]} 58. Kd3 {[%emt 0:00:59]} Rg2 {[%emt 0:00:00]} 59. Bf3 {[%emt 0:00:59]} (59. Rb4+ $14 {was preferrable.} Ka5 60. Be2) 59... Rg3 {[%emt 0:00:00][%csl LRf3,LRh3]} 60. Bg4 {[%emt 0:00:11]} Bd2 {[%emt 0:00:00]} 61. c4 {[%emt 0:00:43]} Rg2 {[%emt 0:00:00]} 62. Be2 {[%emt 0:00:21]} Be1 $1 {[%emt 0:04:40]} 63. Rxe3 {[%emt 0:00:27]} Rg3 {[%emt 0:00:49]} 64. Rxg3 {[%emt 0:00:14]} Bxg3 {[%emt 0:00:08]} 65. Kd4 {[%emt 0:00:15]} Kc7 {[%emt 0:00:08] Blacks defense is rewarded with a draw.  Weighted Error Value: White=0.41/Black=0.33} 1/2-1/2

[Event "44th Chess Olympiad Women 2022"]
[Site "Chennai"]
[Date "2022.07.29"]
[Round "1.44"]
[White "Mona, Khaled"]
[Black "Markidou, Christianna"]
[Result "1-0"]
[ECO "D05"]
[WhiteElo "2127"]
[BlackElo "1701"]
[Annotator "TA"]
[PlyCount "79"]
[EventDate "2022.07.29"]
[EventType "team-tourn"]
[EventCountry "IND"]
[SourceTitle "playchess.com"]
[Source "ChessBase"]
[SourceQuality "1"]
[WhiteTeam "Egypt"]
[BlackTeam "Cyprus"]
[WhiteTeamCountry "EGY"]
[BlackTeamCountry "CYP"]
[TimeControl "40/5400+30:1800+30"]

{[%evp 10,79,34,36,66,47,57,47,80,71,91,99,155,148,307,108,171,182,270,270,269,269,263,264,295,277,286,282,333,333,333,333,339,319,306,314,400,351,359,357,352,349,410,406,389,395,422,409,489,466,484,478,460,461,429,427,614,548,538,529,864,299,860,822,824,790,2128,879,838,825,812,800]} 1. d4 {[%emt 0:00:13]} d5 {[%emt 0:00:12]} 2. Nf3 {[%emt 0:00:06]} e6 {[%emt 0:00:56]} 3. e3 {[%emt 0:00:27]} Nf6 {[%emt 0:02:48]} 4. Bd3 {[%emt 0:00:27]} c6 {[%emt 0:04:41]} 5. Nbd2 {[%emt 0:00:37]} Nbd7 {[%emt 0:01:21]} 6. O-O {[%emt 0:00:38]} Bd6 {[%emt 0:00:33] D05: Colle System with ...e6.} 7. Qe2 {[%emt 0:00:49]} O-O {[%emt 0:00:57]} 8. e4 $1 {[%emt 0:01:21]} dxe4 {[%emt 0:10:05] White is slightly better.} 9. Nxe4 {[%emt 0:00:51]} Nxe4 {[%emt 0:07:26]} 10. Qxe4 {[%emt 0:01:19][%csl Gd3][%cal Re4h7]} Nf6 {[%emt 0:00:53]} ({Better is} 10... g6) 11. Qh4 $1 $16 {[%emt 0:00:39]} h6 $2 {[%emt 0:19:59] [#] Prevents Bg5.} (11... Re8 $16 12. Ne5 h6) 12. Ne5 $2 {[%emt 0:12:24] [#]} (12. Bxh6 $1 $18 {[%mdl 512] is the precise move to win.} gxh6 13. Qxh6) 12... Nd7 $146 {[%emt 0:06:48]} (12... Nd5 $16 13. Qg3 (13. Qe4 f5 $14) 13... Kh8) ({Predecessor:} 12... c5 13. Nc4 cxd4 14. Nxd6 Qxd6 15. Bxh6 e5 16. Bg5 Re8 17. Rae1 Qc6 18. Bxf6 gxf6 {1-0 (40) Grimm,W (1369)-Obrien,G (1392) LSS email 2016}) 13. Qg3 $40 {[%emt 0:02:55][%mdl 128] Threatens to win with Bxh6. White is out for blood.} ({Don't do} 13. Qe4 $6 f5 14. Qe3 Nxe5 15. dxe5 Bc7 $14) 13... Qf6 {[%emt 0:02:15]} (13... Qa5 $142) 14. Nxd7 {[%emt 0:10:04]} Qxd4 {[%emt 0:05:24]} 15. c3 {[%emt 0:02:30]} Bxg3 {[%emt 0:02:45]} 16. cxd4 {[%emt 0:00:22] The board is on fire.} Bxf2+ {[%emt 0:02:06]} 17. Rxf2 {[%emt 0:00:21]} Bxd7 {[%emt 0:00:20]} 18. b3 {[%emt 0:00:11]} Rad8 {[%emt 0:10:33]} 19. Ba3 {[%emt 0:00:50]} Rfe8 {[%emt 0:00:34]} 20. Raf1 {[%emt 0:00:08]} f5 {[%emt 0:01:14]} 21. Re1 {[%emt 0:00:07]} Bc8 {[%emt 0:04:16]} 22. Bb2 {[%emt 0:00:07]} c5 {[%emt 0:08:04]} 23. Bb5 {[%emt 0:00:32]} Bd7 {[%emt 0:01:15]} 24. Bxd7 {[%emt 0:00:10]} Rxd7 {[%emt 0:02:13]} 25. dxc5 {[%emt 0:00:08]} g6 {[%emt 0:00:22]} 26. Be5 {[%emt 0:01:06]} Kf7 {[%emt 0:01:09]} 27. b4 {[%emt 0:00:51]} a6 {[%emt 0:00:28]} 28. a4 {[%emt 0:00:15][%cal Ba2a4,Ba4b5][%mdl 32]} g5 {[%emt 0:01:04]} 29. b5 {[%emt 0:00:18]} axb5 {[%emt 0:00:34]} 30. axb5 {[%emt 0:00:06]} Rc8 {[%emt 0:00:38]} 31. Rc2 {[%emt 0:08:55] aiming for c6.} Rd5 {[%emt 0:01:00]} 32. c6 {[%emt 0:03:12]} b6 {[%emt 0:00:27]} (32... Rxb5 $142 33. c7 Rd5) 33. Ra2 {[%emt 0:02:47] Hoping for Ra7+.} Rxb5 {[%emt 0:00:30]} 34. Ra7+ {[%emt 0:00:05]} Kg6 {[%emt 0:00:30]} 35. Rg7+ {[%emt 0:01:26]} Kh5 {[%emt 0:00:10]} 36. c7 {[%emt 0:00:45] White is clearly winning.} Rc5 {[%emt 0:01:04]} 37. Rd7 {[%emt 0:01:19]} Kg6 {[%emt 0:00:43]} 38. Rd8 {[%emt 0:00:20]} (38. Bd6 $142 Rc4 39. Rxe6+ Kh5 40. h3) 38... R8xc7 {[%emt 0:00:44]} 39. Bxc7 {[%emt 0:00:07]} Rxc7 {[%emt 0:00:17]} 40. Rxe6+ {[%emt 0:00:07] Weighted Error Value: White=0.16 (very precise) /Black=0.44} 1-0

[Event "44th Chess Olympiad Women 2022"]
[Site "Chennai"]
[Date "2022.07.29"]
[Round "1.44"]
[White "Ioannides Liu, Alice"]
[Black "Moaataz, Ayah"]
[Result "0-1"]
[ECO "D02"]
[WhiteElo "1292"]
[BlackElo "2119"]
[Annotator "TA"]
[PlyCount "50"]
[EventDate "2022.07.29"]
[EventType "team-tourn"]
[EventCountry "IND"]
[SourceTitle "playchess.com"]
[Source "ChessBase"]
[SourceQuality "1"]
[WhiteTeam "Cyprus"]
[BlackTeam "Egypt"]
[WhiteTeamCountry "CYP"]
[BlackTeamCountry "EGY"]
[TimeControl "40/5400+30:1800+30"]

{[%evp 12,50,0,-5,3,-51,-46,-39,-7,-25,-25,-30,-7,-18,14,-32,-26,-19,-23,-62,-16,-89,-83,-95,-116,-324,-329,-339,-325,-323,-320,-371,-366,-370,-330,-421,-438,-435,-421,-744,-735]} 1. Nf3 {[%emt 0:00:07]} d5 {[%emt 0:00:06]} 2. d4 {[%emt 0:00:56]} Nf6 {[%emt 0:00:06]} 3. g3 {[%emt 0:00:18]} g6 {[%emt 0:00:27]} 4. Bg2 {[%emt 0:00:07]} Bg7 {[%emt 0:00:06]} 5. O-O {[%emt 0:00:20]} O-O {[%emt 0:00:11]} 6. Bf4 {[%emt 0:00:30]} Nbd7 {[%emt 0:01:23][%cal Bb8d7,Bd7c5,Bc5a4][%mdl 32]} 7. c3 {[%emt 0:04:58]} c5 {[%emt 0:02:17] D02: 1 d4 d5 2 Nf3 sidelines, including 2...Nf6 3 g3 and 2...Nf6 3 Bf4.} 8. dxc5 {[%emt 0:21:25]} ({Better is} 8. Nbd2 $11) 8... Nxc5 $15 {[%emt 0:01:20]} 9. Nbd2 {[%emt 0:01:18][%cal Bb1d2,Bd2b3,Bb3d4][%mdl 32]} Re8 {[%emt 0:07:04] [#] Black is slightly better.} 10. Nb3 $146 {[%emt 0:04:28]} ({Predecessor:} 10. Be3 Nfd7 11. Nb3 Na4 12. Qc2 Nab6 13. Rad1 Qc7 14. Bd4 e5 15. Bxb6 Nxb6 16. e3 {0-1 (27) Zhaferova,F-Gerasimova,O (2097) Zelenograd 2012}) 10... Na4 {[%emt 0:01:03]} 11. Qc1 {[%emt 0:04:43]} Bd7 {[%emt 0:02:50][%cal Bc8d7,Bd7b5,Bb5a6,Ba6c4][%mdl 32]} 12. Ne5 {[%emt 0:02:48]} e6 {[%emt 0:06:12]} 13. Qd2 {[%emt 0:03:58]} (13. Bg5 $11 {feels stronger.}) 13... Bb5 {[%emt 0:11:14]} 14. Nd4 {[%emt 0:03:32]} Ba6 {[%emt 0:03:41]} 15. b4 {[%emt 0:05:19] [#] Strongly threatening b5.} Nd7 {[%emt 0:06:08]} (15... b5 $15 16. Bh6 Ne4 17. Bxe4 Bxe5) 16. Nxd7 {[%emt 0:07:38]} (16. Ng4 $1 $11 {keeps the balance.} Qb6 17. Be3) 16... Qxd7 $17 {[%emt 0:00:04]} 17. Rab1 {[%emt 0:20:45]} Bc4 {[%emt 0:04:15] aiming for ...e5.} 18. Bh6 $2 {[%emt 0:05:19] This costs White the game.} (18. Be3 $17 {keeps fighting.}) 18... Bxh6 $19 {[%emt 0:01:03]} 19. Qxh6 {[%emt 0:00:12]} Nxc3 {[%emt 0:00:52]} 20. Rb2 {[%emt 0:01:30]} e5 {[%emt 0:01:16][%cal Be6e5,Be5d4][%mdl 32]} ({Inferior is} 20... Nxa2 21. Qd2 $15) 21. Nf3 {[%emt 0:04:33]} Nxe2+ {[%emt 0:00:26]} 22. Kh1 {[%emt 0:00:24]} Nd4 {[%emt 0:00:16]} 23. Nxd4 {[%emt 0:01:12]} Bxf1 {[%emt 0:01:04] Black is clearly winning.} ({Avoid the trap} 23... exd4 $2 24. Rd1 $19) 24. Bxf1 {[%emt 0:00:47]} exd4 {[%emt 0:00:07]} 25. Rb1 {[%emt 0:01:07]} (25. Qd2 $142) 25... Qf5 {[%emt 0:00:27][%csl LRb1,LRf2] Weighted Error Value: White=0.51/Black=0.12 (very precise)} 0-1

[Event "44th Chess Olympiad Women 2022"]
[Site "Chennai"]
[Date "2022.07.29"]
[Round "1.44"]
[White "Sokolova, Victoria"]
[Black "Elansary, Eman"]
[Result "0-1"]
[ECO "D35"]
[WhiteElo "1193"]
[BlackElo "1936"]
[Annotator "TA"]
[PlyCount "70"]
[EventDate "2022.07.29"]
[EventType "team-tourn"]
[EventCountry "IND"]
[SourceTitle "playchess.com"]
[Source "ChessBase"]
[SourceQuality "1"]
[WhiteTeam "Cyprus"]
[BlackTeam "Egypt"]
[WhiteTeamCountry "CYP"]
[BlackTeamCountry "EGY"]
[TimeControl "40/5400+30:1800+30"]

{[%evp 14,69,10,0,26,-8,0,0,10,0,0,0,0,0,39,39,37,-25,-7,-17,0,0,0,-48,-62,-101,-83,-122,-92,-114,-115,-114,-115,-248,-247,-248,-241,-260,-249,-292,-262,-299,-293,-346,-292,-944,-944,-930,-916,-953,-939,-29960,-29967,-29995,-29996,-29998,-29999,-29999]} 1. c4 {[%emt 0:00:08]} e6 {[%emt 0:00:29]} 2. Nc3 {[%emt 0:00:26]} d5 {[%emt 0:00:26]} 3. cxd5 {[%emt 0:00:09]} exd5 {[%emt 0:00:06]} 4. d4 {[%emt 0:00:09]} Nf6 {[%emt 0:00:42]} 5. Nf3 {[%emt 0:00:18]} Be7 {[%emt 0:04:01]} 6. Bf4 {[%emt 0:00:24]} O-O {[%emt 0:00:22]} 7. e3 {[%emt 0:00:46]} c6 {[%emt 0:09:45]} 8. Bd3 {[%emt 0:00:40] 8.Qc2 is not played anymore.} Bg4 $1 {[%emt 0:00:37][%mdl 4] is now more promising than 8...Nbd7. D35: Queen's Gambit Declined: Exchange Variation.} (8... Nh5 $5 {[%cal Rh5f4]}) 9. O-O {[%emt 0:00:30]} Nbd7 {[%emt 0:00:17]} 10. h3 {[%emt 0:00:08]} Bh5 {[%emt 0:00:16] The position is equal.} 11. g4 {[%emt 0:01:33]} Bg6 {[%emt 0:00:14] [#]} 12. Bxg6 $146 {[%emt 0:00:13]} ({Predecessor:} 12. Kg2 Ne4 13. Qc2 Ndf6 14. Ne5 Nxc3 15. Nxg6 hxg6 16. Qxc3 Bd6 17. Bg5 Qd7 18. Bxf6 gxf6 {½-½ (42) Ulrich,G (1540)-Rehder,F (1724) Rowy 2009}) 12... hxg6 {[%emt 0:03:24]} 13. Kg2 {[%emt 0:00:48]} Ne4 {[%emt 0:04:55]} 14. Nxe4 {[%emt 0:00:26]} dxe4 {[%emt 0:00:03]} 15. Ne5 {[%emt 0:00:44]} ({White should play} 15. Nd2 $1 $14) 15... Nxe5 $11 {[%emt 0:00:37]} 16. Bxe5 {[%emt 0:00:23]} Bd6 {[%emt 0:01:42]} 17. Bxd6 {[%emt 0:00:37]} Qxd6 {[%emt 0:00:02]} 18. f3 {[%emt 0:00:37]} (18. Qb3 $11) 18... exf3+ $1 $15 {[%emt 0:01:34]} 19. Qxf3 {[%emt 0:00:33]} Rae8 {[%emt 0:00:32][%cal Ba8e8,Be8e7,Be7e4][%mdl 32]} 20. Rf2 {[%emt 0:01:01]} Re7 {[%emt 0:00:24]} 21. Re1 {[%emt 0:00:29]} Rfe8 {[%emt 0:01:42]} 22. Rfe2 {[%emt 0:00:36]} Re4 {[%emt 0:02:24]} 23. Qg3 {[%emt 0:03:55] Now White is beyond hope.} (23. b3 $17) 23... Qd5 $19 {[%emt 0:03:05][%csl LRa2,LRd4,LRe3,LRg4] [#] ...Rxg4+ is the strong threat.} 24. Kf2 {[%emt 0:00:48]} Qxa2 {[%emt 0:01:39]} 25. Qc7 {[%emt 0:00:56]} Qb3 {[%emt 0:01:47]} 26. Qa5 {[%emt 0:04:31]} a6 {[%emt 0:02:01][%cal Of7f5]} 27. Qg5 {[%emt 0:00:50]} Qe6 {[%emt 0:03:20]} 28. Kf3 {[%emt 0:03:13]} Re7 {[%emt 0:03:10][%cal Be8e7,Be7d7,Bd7d5][%mdl 32]} 29. h4 $2 {[%emt 0:00:50] [#]} (29. Kg2) 29... Rd7 {[%emt 0:00:33]} 30. h5 {[%emt 0:02:13]} Rd5 {[%emt 0:03:07]} 31. Qh4 {[%emt 0:05:19]} gxh5 {[%emt 0:01:46][%cal Re4g4]} 32. Rh2 {[%emt 0:06:31]} Rxg4 {[%emt 0:00:35] Black mates.} 33. Qh3 {[%emt 0:02:43]} Qe4+ {[%emt 0:00:22]} 34. Kf2 {[%emt 0:00:56]} Rf5+ {[%emt 0:00:23]} 35. Ke2 {[%emt 0:00:43]} Qc2# {[%emt 0:00:12] Weighted Error Value: White=0.65/Black=0.08 (flawless)} 0-1

[Event "44th Chess Olympiad Women 2022"]
[Site "Chennai"]
[Date "2022.07.29"]
[Round "1.45"]
[White "Paasikangas, Johanna"]
[Black "Pio Monteiro, Juliana"]
[Result "1-0"]
[ECO "E76"]
[WhiteElo "2155"]
[BlackElo "1319"]
[Annotator "TA"]
[PlyCount "59"]
[EventDate "2022.07.29"]
[EventType "team-tourn"]
[EventCountry "IND"]
[SourceTitle "playchess.com"]
[Source "ChessBase"]
[SourceQuality "1"]
[WhiteTeam "Finland"]
[BlackTeam "CPV"]
[WhiteTeamCountry "FIN"]
[TimeControl "40/5400+30:1800+30"]

{[%evp 9,59,3,80,78,93,116,119,108,114,118,139,16,17,0,14,-75,111,44,29,47,108,12,66,77,64,-49,-22,-112,140,134,134,140,139,126,123,140,277,283,583,570,995,985,906,887,3665,672,3316,2820,29991,29992,29992,29993]} 1. d4 {[%emt 0:00:06]} Nf6 {[%emt 0:00:14]} 2. c4 {[%emt 0:00:23]} g6 {[%emt 0:00:12]} 3. Nc3 {[%emt 0:00:10]} Bg7 {[%emt 0:00:12]} 4. e4 {[%emt 0:00:08]} d6 {[%emt 0:00:16]} 5. f4 {[%emt 0:00:51]} e5 {[%emt 0:03:29]} (5... c5 $11) 6. dxe5 $16 {[%emt 0:05:17] E76: King's Indian: Four Pawns Attack: Lines specific to 6 Nf3 move-order.} dxe5 {[%emt 0:04:50]} 7. Qxd8+ {[%emt 0:01:27]} (7. fxe5 Qxd1+ 8. Kxd1 Ng4 $17) 7... Kxd8 {[%emt 0:00:23]} 8. fxe5 {[%emt 0:00:09] White is better.} Ng4 {[%emt 0:01:02] [#]} 9. Bg5+ $1 {[%emt 0:01:44]} Ke8 {[%emt 0:00:55] [#]} 10. h3 $146 {[%emt 0:08:30]} (10. Rd1 $16 {[%csl Gg5][%cal Rd1d8]} Nc6 11. Nb5) ({Predecessor:} 10. Nd5 Na6 11. Nf3 Nxe5 12. Nf6+ Bxf6 13. Bxf6 Nxf3+ 14. gxf3 Rg8 15. O-O-O Be6 16. h4 {1-0 (45) Sarkar,J (2366)-Min,R (1659) Chess.com INT 2021}) 10... Nxe5 $11 {[%emt 0:07:00]} 11. Nd5 {[%emt 0:01:26]} Na6 {[%emt 0:10:54]} 12. c5 {[%emt 0:21:21]} (12. O-O-O $11 Be6 13. Nf3) 12... Rb8 $2 {[%emt 0:13:24]} (12... c6 $17 13. Bxa6 cxd5 14. Bb5+ Bd7 15. Bxd7+ Nxd7 16. exd5 Nxc5) 13. Bxa6 {[%emt 0:02:49]} ({White should play} 13. O-O-O $16 {[%cal Od5c7] White threatens Nxc7+! and mate.} Be6 14. Nf3 Nxc5 15. Nf6+ (15. Nxc7+ Kf8 $14) 15... Bxf6 16. Bxf6 Nxf3 17. Bxh8) 13... bxa6 $14 {[%emt 0:00:22]} 14. O-O-O $40 {[%emt 0:00:25][%mdl 128] White attacks.} ({Reject} 14. Nxc7+ Kd7 15. Nd5 Nd3+ 16. Kf1 Nxc5 $17) 14... Bb7 {[%emt 0:11:29]} (14... f5 $14) 15. Nxc7+ {[%emt 0:09:05]} Kf8 {[%emt 0:01:01]} 16. Nd5 {[%emt 0:00:43] 0x0.0016810cfb76dp-1022s more active pieces.} Rc8 {[%emt 0:15:15]} 17. Be7+ {[%emt 0:01:41]} ({White should try} 17. Kb1 $14) 17... Ke8 $1 $15 {[%emt 0:01:30] Hoping for ...Bxd5.} 18. Bd6 {[%emt 0:06:36]} (18. Bh4 $11 {remains equal.}) 18... Bxd5 $4 {[%emt 0:09:39][%mdl 8192]} (18... Nc4 $17 19. Kb1 Nxb2) 19. Rxd5 $16 {[%emt 0:02:41]} ({Of course not} 19. exd5 $6 Nc4 20. Re1+ Kd7 21. Re7+ Kd8 $11) 19... Nc4 {[%emt 0:00:50] [#]} 20. e5 $1 {[%emt 0:01:15]} Nxd6 {[%emt 0:02:03]} 21. exd6 {[%emt 0:00:16]} Kd7 {[%emt 0:00:17]} 22. Nf3 {[%emt 0:05:59]} Ke6 {[%emt 0:01:43]} (22... Rb8 $16) 23. Rhd1 $18 {[%emt 0:00:28] Black must now prevent d7.} Rc6 $2 {[%emt 0:01:41]} (23... Kd7 24. b4 Rhe8) 24. d7 {[%emt 0:03:19] Strongly threatening Ng5+.} Rd8 {[%emt 0:00:42]} 25. Ng5+ {[%emt 0:00:21]} Ke7 {[%emt 0:03:07]} 26. Re1+ {[%emt 0:00:20]} Kf8 {[%emt 0:03:10]} 27. Nxh7+ {[%emt 0:00:13]} Kg8 {[%emt 0:01:58]} 28. Re8+ {[%emt 0:00:17]} Rxe8 {[%emt 0:00:30]} 29. dxe8=Q+ {[%emt 0:00:13]} Kxh7 {[%emt 0:00:05]} 30. Qxc6 {[%emt 0:00:12] Weighted Error Value: White=0.45/Black=0.97} 1-0